{"text_format":"1","workbook":"xlsx","n_sheets":4,"sheets":["ТОВАРЫ","БАЗА","Лист2","ОТЧЕТ"],"not_rendered":{"charts":0,"images":0,"macros":1,"external_links":0,"defined_names":8,"comments":0,"pivot_tables":1},"unopened":[],"bounds":{"document_bytes":16777216,"sheet_cells":100000,"rows_first":2000,"rows_last":500,"rows_between":2000,"halvings":0,"cell_chars":16384,"cell_head_chars":4096},"cells_cut":0,"cells_raw":0,"read":"whole","date_system":"1900"}

{"sheet":"ТОВАРЫ","index":0,"n_rows":10,"n_cols":35,"rows_kept":10,"cut":false,"hidden":false,"merged":[]}
["КОД","НАИМЕНОВАНИЕ 1","НАИМЕНОВАНИЕ 2","ТИП НОМЕНКЛАТУРЫ","НАИМЕНОВАНИЕ 3","НАИМЕНОВАНИЕ 4","НАИМЕНОВАНИЕ 5","НОМЕНКЛАТУРА","ОСТАТОК НА НАЧАЛО 1С","ПАЛ","РОС","ОСТАТОК НА НАЧАЛО НАЛИЧИЕ","ПАЛ","РОС","ПРИХОД","ПАЛЕТЫ","РОССЫПЬ","РАСХОД","ПАЛЕТЫ","РОССЫПЬ","ОСТАТОК  1С","ПАЛ","РОС","ОСТАТОК ОТЧЕТ","ПАЛ","РОС","ОСТАТОК НАЛИЧ","ПАЛ","РОС","1С-ОТЧЕТ","ПАЛ","РОС","1С-НАЛИЧ","ПАЛ","РОС"]
[30018,"ГОТОВАЯ ПРОДУКЦИЯ","ГОТОВАЯ ПРОДУКЦИЯ","КОНЕЧНАЯ ПРОДУКЦИЯ","СТЕЛАЖ СТ","ОГРАНИЧИТЕЛЬ СТ (35)","ОГРАНИЧИТЕЛЬ СТ (35)","1. Ограничитель СТ 30 (35)"]
[30020,"ГОТОВАЯ ПРОДУКЦИЯ","ГОТОВАЯ ПРОДУКЦИЯ","КОНЕЧНАЯ ПРОДУКЦИЯ","СТЕЛАЖ СТ","ОГРАНИЧИТЕЛЬ СТ (35)","ОГРАНИЧИТЕЛЬ СТ (35)","2. Ограничитель СТ 40 (35)"]
[30022,"ГОТОВАЯ ПРОДУКЦИЯ","ГОТОВАЯ ПРОДУКЦИЯ","КОНЕЧНАЯ ПРОДУКЦИЯ","СТЕЛАЖ СТ","ОГРАНИЧИТЕЛЬ СТ (35)","ОГРАНИЧИТЕЛЬ СТ (35)","3. Ограничитель СТ 50 (35)"]
[30024,"ГОТОВАЯ ПРОДУКЦИЯ","ГОТОВАЯ ПРОДУКЦИЯ","КОНЕЧНАЯ ПРОДУКЦИЯ","СТЕЛАЖ СТ","ОГРАНИЧИТЕЛЬ СТ (35)","ОГРАНИЧИТЕЛЬ СТ (35)","4. Ограничитель СТ 60 (35)"]
[30026,"ГОТОВАЯ ПРОДУКЦИЯ","ГОТОВАЯ ПРОДУКЦИЯ","КОНЕЧНАЯ ПРОДУКЦИЯ","СТЕЛАЖ СТ","ОГРАНИЧИТЕЛЬ СТ (35)","ОГРАНИЧИТЕЛЬ СТ (35)","5. Ограничитель СТ 70 (35)"]
[30028,"ГОТОВАЯ ПРОДУКЦИЯ","ГОТОВАЯ ПРОДУКЦИЯ","КОНЕЧНАЯ ПРОДУКЦИЯ","СТЕЛАЖ СТ","ОГРАНИЧИТЕЛЬ СТ (35)","ОГРАНИЧИТЕЛЬ СТ (35)","6. Ограничитель СТ 74 (35)"]
[30030,"ГОТОВАЯ ПРОДУКЦИЯ","ГОТОВАЯ ПРОДУКЦИЯ","КОНЕЧНАЯ ПРОДУКЦИЯ","СТЕЛАЖ СТ","ОГРАНИЧИТЕЛЬ СТ (35)","ОГРАНИЧИТЕЛЬ СТ (35)","7. Ограничитель СТ 80 (35)"]
[30014,"ГОТОВАЯ ПРОДУКЦИЯ","ГОТОВАЯ ПРОДУКЦИЯ","КОНЕЧНАЯ ПРОДУКЦИЯ","СТЕЛАЖ СТ","ОГРАНИЧИТЕЛЬ СТ (35)","ОГРАНИЧИТЕЛЬ СТ (35)","8. Ограничитель СТ 100 (35)"]
[30016,"ГОТОВАЯ ПРОДУКЦИЯ","ГОТОВАЯ ПРОДУКЦИЯ","КОНЕЧНАЯ ПРОДУКЦИЯ","СТЕЛАЖ СТ","ОГРАНИЧИТЕЛЬ СТ (35)","ОГРАНИЧИТЕЛЬ СТ (35)","9. Ограничитель СТ 104 (35)"]

{"sheet":"БАЗА","index":1,"n_rows":16,"n_cols":6,"rows_kept":16,"cut":false,"hidden":false,"merged":[]}
["СКЛАДЫ","Контрагенты РЕГИОНЫ","Контрагенты ПОКУПАТЕЛИ","ТИП ДОКУМЕНТА","ОПЕРАЦИЯ","ДАТА"]
["1. ЦЕХ № 1 (МЕРЕ-МЕРЕ)","1. ВОЛГОГРАД","ДОБАВИТЬ","1.  ПОСТУПЛЕНИЕ ИЗ ПРОИЗВОДСТВА","ПРИХОД","ВЫБРАТЬ"]
["2. ЦЕХ № 4 (РУСТАМ)","2. ЕКАТЕРЕНБУРГ",null,"2.  ПЕРЕМЕЩЕНИЕ ПО СКЛАДАМ","РАСХОД"]
["3. ЦЕХ № 2 (WEMO)","3. КАЗАНЬ",null,"3.  ОТГРУЗКА НА ДРУГОЙ СКЛАД","ОСТАТОК НАЧАЛО"]
["4. КОМПЛЕКТОВКА","4. КРАСНОДАР",null,"4.  РЕАЛИЗАЦИЯ (ПРОДАЖА)","ОСТАТОК КОНЕЦ"]
["5. ПИЛОРАМА","5. НИЖНИЙ НОВГОРОД"]
["6. ВНУТРЕННИЕ НУЖДЫ","6. НОВОСИБИРСК"]
["7. БРАК ПОЛКА-ШКАФЫ","7. ПЕРМЬ"]
["8. БРАК СТОЙКА-БАЛКА","8. РОСТОВ-НА-ДОНУ"]
["9. ТЕПЛЫЙ ПОЛКА-ШКАФЫ","9. САМАРА"]
["10. ТЕПЛЫЙ СТОЙКА-БАЛКА","10. САНКТ-ПЕТЕРБУРГ"]
["11. ХОЛОДНЫЙ ПОЛКА-ШКАФЫ","11. САРАТОВ"]
["12. ХОЛОДНЫЙ СТОЙКА-БАЛКА","12. СТАВРОПОЛЬ"]
[null,"13. ТЮМЕНЬ"]
[null,"14. УФА"]
[null,"15. ЧЕЛЯБИНСК"]

{"sheet":"Лист2","index":2,"n_rows":34,"n_cols":12,"rows_kept":34,"cut":false,"hidden":false,"merged":[]}
["ДАТА","КОД","НОМЕНКЛАТУРА","ТИП ДОКУМЕНТА","СКЛАДЫ","№ ДОК-ТА 1","КОНТРАГЕНТ РЕГИОНЫ","КОНТРАГЕНТ ПОКУПАТЕЛЬ","ОСТАТОК УТРО","ПРИХОД","РАСХОД","ОСТАТОК ВЕЧЕР"]
["2013-02-15",null,"1. Ограничитель СТ 30 (35)","1.  ПОСТУПЛЕНИЕ ИЗ ПРОИЗВОДСТВА","1. ЦЕХ № 1 (МЕРЕ-МЕРЕ)","п1",null,null,100,200,null,{"$f":"IF(I2>=0,I2+J2-K2)","v":300}]
["2013-02-15",null,"1. Ограничитель СТ 30 (35)","1.  ПОСТУПЛЕНИЕ ИЗ ПРОИЗВОДСТВА","1. ЦЕХ № 1 (МЕРЕ-МЕРЕ)","п2",null,null,{"$f":"L2","v":300},200,null,{"$f":"IF(I3>=0,I3+J3-K3)","v":500}]
["2013-02-15",null,"1. Ограничитель СТ 30 (35)","1.  ПОСТУПЛЕНИЕ ИЗ ПРОИЗВОДСТВА","1. ЦЕХ № 1 (МЕРЕ-МЕРЕ)","п3",null,null,{"$f":"L3","v":500},200,null,700]
["2013-02-15",null,"1. Ограничитель СТ 30 (35)","3.  ОТГРУЗКА НА ДРУГОЙ СКЛАД",null,"р1","1. ВОЛГОГРАД",null,700,null,100,600]
["2013-02-15",null,"1. Ограничитель СТ 30 (35)","3.  ОТГРУЗКА НА ДРУГОЙ СКЛАД",null,"р2","4. КРАСНОДАР",null,600,null,100,500]
["2013-02-15",null,"1. Ограничитель СТ 30 (35)","3.  ОТГРУЗКА НА ДРУГОЙ СКЛАД",null,"р3","4. КРАСНОДАР",null,500,null,100,400]
["2013-02-15",null,"2. Ограничитель СТ 40 (35)","1.  ПОСТУПЛЕНИЕ ИЗ ПРОИЗВОДСТВА","1. ЦЕХ № 1 (МЕРЕ-МЕРЕ)","п4",null,null,400,200,null,600]
["2013-02-15",null,"2. Ограничитель СТ 40 (35)","1.  ПОСТУПЛЕНИЕ ИЗ ПРОИЗВОДСТВА","1. ЦЕХ № 1 (МЕРЕ-МЕРЕ)","п5",null,null,600,200,null,800]
["2013-02-15",null,"2. Ограничитель СТ 40 (35)","1.  ПОСТУПЛЕНИЕ ИЗ ПРОИЗВОДСТВА","1. ЦЕХ № 1 (МЕРЕ-МЕРЕ)","п6",null,null,800,200,null,1000]
["2013-02-16",null,"2. Ограничитель СТ 40 (35)","1.  ПОСТУПЛЕНИЕ ИЗ ПРОИЗВОДСТВА","1. ЦЕХ № 1 (МЕРЕ-МЕРЕ)","п7",null,null,1000,200,null,1200]
["2013-02-16",null,"2. Ограничитель СТ 40 (35)","1.  ПОСТУПЛЕНИЕ ИЗ ПРОИЗВОДСТВА","1. ЦЕХ № 1 (МЕРЕ-МЕРЕ)","п8",null,null,1200,200,null,1400]
["2013-02-16",null,"2. Ограничитель СТ 40 (35)","1.  ПОСТУПЛЕНИЕ ИЗ ПРОИЗВОДСТВА","1. ЦЕХ № 1 (МЕРЕ-МЕРЕ)","п9",null,null,1400,200,null,1600]
["2013-02-17",null,"3. Ограничитель СТ 50 (35)","1.  ПОСТУПЛЕНИЕ ИЗ ПРОИЗВОДСТВА","1. ЦЕХ № 1 (МЕРЕ-МЕРЕ)","п10",null,null,1600,200,null,1800]
["2013-02-17",null,"3. Ограничитель СТ 50 (35)","1.  ПОСТУПЛЕНИЕ ИЗ ПРОИЗВОДСТВА","1. ЦЕХ № 1 (МЕРЕ-МЕРЕ)","п11",null,null,1800,200,null,2000]
["2013-02-17",null,"3. Ограничитель СТ 50 (35)","1.  ПОСТУПЛЕНИЕ ИЗ ПРОИЗВОДСТВА","1. ЦЕХ № 1 (МЕРЕ-МЕРЕ)","п12",null,null,2000,200,null,2200]
["2013-02-21",null,"1. Ограничитель СТ 30 (35)","3.  ОТГРУЗКА НА ДРУГОЙ СКЛАД",null,"р4","2. ЕКАТЕРЕНБУРГ",null,2200,null,100,2100]
["2013-02-21",null,"2. Ограничитель СТ 40 (35)","3.  ОТГРУЗКА НА ДРУГОЙ СКЛАД",null,"р5","3. КАЗАНЬ",null,2100,null,100,2000]
["2013-02-21",null,"2. Ограничитель СТ 40 (35)","3.  ОТГРУЗКА НА ДРУГОЙ СКЛАД",null,"р6","3. КАЗАНЬ",null,2000,null,100,1900]
["2013-02-26",null,"3. Ограничитель СТ 50 (35)","3.  ОТГРУЗКА НА ДРУГОЙ СКЛАД",null,"р7","6. НОВОСИБИРСК",null,1900,null,100,1800]
["2013-02-26",null,"3. Ограничитель СТ 50 (35)","3.  ОТГРУЗКА НА ДРУГОЙ СКЛАД",null,"р8","6. НОВОСИБИРСК",null,1800,null,100,1700]
["2013-02-26",null,"3. Ограничитель СТ 50 (35)","3.  ОТГРУЗКА НА ДРУГОЙ СКЛАД",null,"р9","6. НОВОСИБИРСК",null,1700,null,100,1600]
["2013-02-28",null,"5. Ограничитель СТ 70 (35)","1.  ПОСТУПЛЕНИЕ ИЗ ПРОИЗВОДСТВА","1. ЦЕХ № 1 (МЕРЕ-МЕРЕ)","п13",null,null,1600,200,null,1800]
["2013-02-28",null,"4. Ограничитель СТ 60 (35)","1.  ПОСТУПЛЕНИЕ ИЗ ПРОИЗВОДСТВА","1. ЦЕХ № 1 (МЕРЕ-МЕРЕ)","п14",null,null,1800,200,null,2000]
["2013-02-28",null,"7. Ограничитель СТ 80 (35)","1.  ПОСТУПЛЕНИЕ ИЗ ПРОИЗВОДСТВА","1. ЦЕХ № 1 (МЕРЕ-МЕРЕ)","п15",null,null,2000,200,null,2200]
["2013-03-01",null,"8. Ограничитель СТ 100 (35)","1.  ПОСТУПЛЕНИЕ ИЗ ПРОИЗВОДСТВА","1. ЦЕХ № 1 (МЕРЕ-МЕРЕ)","п16",null,null,2200,200,null,2400]
["2013-02-01",null,"7. Ограничитель СТ 80 (35)","1.  ПОСТУПЛЕНИЕ ИЗ ПРОИЗВОДСТВА","1. ЦЕХ № 1 (МЕРЕ-МЕРЕ)","п17",null,null,2400,200,null,2600]
["2013-02-01",null,"2. Ограничитель СТ 40 (35)","3.  ОТГРУЗКА НА ДРУГОЙ СКЛАД",null,"п10","7. ПЕРМЬ",null,2600,null,100,2500]
["2013-02-02",null,"3. Ограничитель СТ 50 (35)","3.  ОТГРУЗКА НА ДРУГОЙ СКЛАД",null,"п11","8. РОСТОВ-НА-ДОНУ",null,2500,null,100,2400]
["2013-02-02",null,"1. Ограничитель СТ 30 (35)","3.  ОТГРУЗКА НА ДРУГОЙ СКЛАД",null,"п12","10. САНКТ-ПЕТЕРБУРГ",null,2400,null,100,2300]
["2013-02-02",null,"2. Ограничитель СТ 40 (35)","3.  ОТГРУЗКА НА ДРУГОЙ СКЛАД",null,"п13","6. НОВОСИБИРСК",null,2300,null,100,2200]
["2013-02-03",null,"2. Ограничитель СТ 40 (35)","3.  ОТГРУЗКА НА ДРУГОЙ СКЛАД",null,"п14","7. ПЕРМЬ",null,2200,null,100,2100]
["2013-02-03",null,"2. Ограничитель СТ 40 (35)","3.  ОТГРУЗКА НА ДРУГОЙ СКЛАД",null,"п15","11. САРАТОВ",null,2100,null,100,2000]
["2013-02-03",null,"6. Ограничитель СТ 74 (35)","1.  ПОСТУПЛЕНИЕ ИЗ ПРОИЗВОДСТВА","1. ЦЕХ № 1 (МЕРЕ-МЕРЕ)","п17","12. СТАВРОПОЛЬ",null,2000,200,null,2200]

{"sheet":"ОТЧЕТ","index":3,"n_rows":16,"n_cols":5,"rows_kept":16,"cut":false,"hidden":false,"merged":[]}
["1. ДАТА","(Все)"]
["3. СКЛАДЫ","(Все)"]
["2. ТИП ДОКУМЕНТА","(Все)"]
["4. КОНТРАГЕНТ РЕГИОНЫ","(Все)"]
[]
[null,"ОТЧЕТ"]
["НОМЕНКЛАТУРА","ОСТАТОК начало","ПРИХ","РАСХ","ОСТАТОК конец"]
["1. Ограничитель СТ 30 (35)",6500,600,500,6600]
["2. Ограничитель СТ 40 (35)",17500,1200,600,18100]
["3. Ограничитель СТ 50 (35)",12600,600,400,12800]
["4. Ограничитель СТ 60 (35)",1700,200,null,1900]
["5. Ограничитель СТ 70 (35)",1500,200,null,1700]
["6. Ограничитель СТ 74 (35)",1900,200,null,2100]
["7. Ограничитель СТ 80 (35)",4200,400,null,4600]
["8. Ограничитель СТ 100 (35)",2100,200,null,2300]
["Общий итог:",48000,3600,1500,50100]